Cogmind - Beta 16 @@@ ROGUE MODE // 2025.11.09 @ 14:06:04 Player: Bikerider58 Result: Destroyed by ED-A9W(R) with Subdweller Beam Cannon Performance ------------- Evolutions (0) 0 Regions Visited (2) 400 Robots Destroyed (19) 95 Value Destroyed (494) 494 Prototype IDs (0) 0 Alien Tech Used (0) 0 Bonus (0) 0 TOTAL SCORE: 989 Bonus ------- None Cogmind --------- Core Integrity 0/250 Matter 182/300 Energy 100/100 System Corruption 3% Temperature Cool (9) Movement Treading (160) Location -10/Subcaves Parts ------- > --- POWER (1) -------- (None) > --- PROPULSION (2) --- Light Treads Light Treads > --- UTILITY (2) ------ Scrap Shield > --- WEAPON (2) ------- Battle Cannon Subdweller Shrapnel Launcher > --- INVENTORY (5) ---- Light Treads Huge Storage Unit Makeshift Hacking Suite Battle Cannon Multitool Peak State ------------ > --- POWER ------------ Light Nuclear Core > --- PROPULSION ------- Light Treads Spiked Treads > --- UTILITY ---------- Disposable Heat Sink Large Storage Unit > --- WEAPON ----------- Makeshift Laser Subdweller Machine Gun > --- INVENTORY -------- Light Treads Light Treads Light Treads Light Treads Huge Storage Unit Improved Terrain Scanner Seismic Detector Improved Targeting Computer Makeshift Hacking Suite Beam Rifle Beam Rifle Battle Cannon Battle Cannon Mining Laser Multitool [Rating: 17] Favorites ----------- Power Ion Engine Engine Ion Engine Power Core Light Nuclear Core Propulsion Light Treads Treads Light Treads Utility Large Storage Unit Device Seismic Detector Storage Large Storage Unit Protection Scrap Shield Weapon Assault Rifle Energy Gun Medium Laser Ballistic Gun Assault Rifle Ballistic Cannon Battle Cannon Launcher Subdweller Shrapnel Launcher Special Weapon Mining Laser Build | -11 -10 -10 ------- Run | Yrd Mat Sub Slots Evolved . | . . . Power . | . . . Propulsion . | . . . Utility . | . . . Weapon . | . . . Parts Attached 25 | 7 3 15 Power 3 | 1 1 1 Engine 2 | 1 1 . Core 1 | . . 1 Reactor . | . . . Propulsion 7 | 2 . 5 Treads 7 | 2 . 5 Leg . | . . . Wheel . | . . . Hover . | . . . Flight . | . . . Utility 5 | 2 1 2 Device 2 | 1 . 1 Storage 2 | 1 1 . Processor . | . . . Hackware . | . . . Protection 1 | . . 1 Artifact . | . . . Weapon 10 | 2 1 7 Energy Gun 3 | 1 . 2 Energy Cannon . | . . . Ballistic Gun 4 | 1 . 3 Ballistic Cannon 1 | . . 1 Launcher 1 | . . 1 Special Weapon 1 | . 1 . Impact Weapon . | . . . Slashing Weapon . | . . . Piercing Weapon . | . . . Special Melee Weapon . | . . . Unidentified Prototypes . | . . . Parts Lost 7 | . . 7 Power 2 | . . 2 Propulsion 2 | . . 2 Utility . | . . . Weapon 3 | . . 3 Highest Loss Streak 3 | . . 3 To Critical Strikes . | . . . Average Backups 11 | 1 11 12 Power . | . . . Propulsion 4 | . 5 3 Utility 2 | . 2 4 Weapon 3 | 1 3 3 Tool/Special . | . . . Unused Backups 15 | . 5 10 Power . | . . . Propulsion 3 | . 1 2 Utility 7 | . 2 5 Weapon 4 | . 2 2 Tool/Special 1 | . . 1 Average Slot Usage (%) 94 | . 99 89 Engine 9 | . 14 2 Core 1 | . . 4 Treads 27 | . 28 27 Device 12 | . 14 10 Storage 12 | . 14 10 Protection 1 | . . 3 Energy Gun 8 | . 10 5 Ballistic Gun 13 | . 14 12 Ballistic Cannon 2 | . . 6 Launcher 1 | . . 2 Special Weapon 1 | . 3 . Peak Build Rating 17 | 7 9 17 Average Rating 9 | 5 8 12 On Entrance 5 | . 7 9 Avg Prop Armor Cover (%) . | . . . Naked Turns . | . . . Heaviest Build 33 | 15 30 33 Greatest Support 40 | 40 40 40 Greatest Overweight (x) . | . . . Average Overweight (x) . | . . . Largest Inventory Capacity 15 | 8 15 15 Average Capacity 13 | 7 14 12 Most Carried 15 | 3 15 15 Average Carried 11 | 1 11 12 Final Capacity 15 | 8 15 5 Final Carried 15 | 3 15 5 Class Distribution -------------------- 100% | Mutant Dominant Class ---------------- Mutant | -10/Materials Mutant | -10/Subcaves Resources | -11 -10 -10 ----------- Run | Yrd Mat Sub Matter Collected 746 | 288 136 322 Remotely . | . . . Salvage Created 598 | 112 226 260 Parts 36 | 11 17 8 Haulers Intercepted 1 | . 1 . Recyclers Shooed . | . . . Parts Field Recycled . | . . . Retrieved Matter . | . . . Parts Self-Destructed 7 | . . 7 Prevented . | . . . Parts Restored . | . . . Kills | -11 -10 -10 ------- Run | Yrd Mat Sub Combat Hostiles Destroyed 14 | . 6 8 Guns 11 | . 6 5 Cannons 3 | . . 3 Classes Destroyed 6 | 2 3 1 Tunneler 3 | 3 . . Hauler 1 | . 1 . Recycler 1 | 1 . . Swarmer 3 | . 3 . Grunt 3 | . 3 . Subdweller 8 | . . 8 Best Kill Streak 4 | 4 3 2 Combat Bots Only 3 | . 3 2 Max Kills in Single Turn 2 | 1 2 1 Gunslinging . | . . . Exploded . | . . . Melee . | . . . Uniques/NPCs Destroyed . | . . . Combat | -11 -10 -10 -------- Run | Yrd Mat Sub Hostile Shots Fired 104 | . 37 67 Missed 23 | . 5 18 Hits 81 | . 32 49 Projectile 81 | . 32 49 Damage Taken 1501 | . 370 1131 Core 271 | . 50 221 Absorbed by Shields . | . . . Regen/Repaired (Parts) 27 | . 27 . Core Remaining (%) 100 | 100 . . Volleys Fired 75 | 6 33 36 Largest 2 | 2 2 2 Hottest 100 | 70 100 80 Shots Fired 140 | 12 56 72 Gun 116 | 12 47 57 Cannon 14 | . . 14 Launcher 1 | . . 1 Special 9 | . 9 . Kinetic 86 | 6 24 56 Thermal 54 | 6 32 16 Explosive . | . . . Electromagnetic . | . . . Robot Hit Streak 11 | 3 11 11 Robot Miss Streak 4 | 4 2 3 Penetration Max . | . . . Secondary Targets 1 | . 1 . Max Gunslinging Chain 1 | . 1 . Shots Hit Robots 87 | 5 32 50 Core Hits 32 | 5 13 14 Critical Kills . | . . . Critical Parts Destroyed . | . . . Critical Strikes 3 | . 2 1 Burn 3 | . 2 1 Melee Attacks . | . . . Impact . | . . . Slashing . | . . . Piercing . | . . . Sneak Attacks . | . . . Combat Hostiles . | . . . Follow-up Attacks . | . . . Damage Inflicted 1435 | 70 443 922 Guns 1161 | 66 427 668 Cannons 254 | . . 254 Explosions . | . . . Melee . | . . . Ramming 20 | 4 16 . Kinetic 991 | 54 202 735 Thermal 424 | 12 225 187 Explosive . | . . . Electromagnetic . | . . . Impact . | . . . Slashing . | . . . Piercing . | . . . Highest Corruption 3 | . 3 3 Average Corruption 2 | . 2 3 Corruption Purged . | . . . Corruption Blocked . | . . . Effects 27 | . 15 12 Message Errors 2 | . . 2 Matter Fused 5 | . 2 3 Heat Flow Errors 5 | . 5 . Energy Discharges 6 | . 4 2 Parts Rejected 2 | . 1 1 Data Loss (minor) 4 | . 1 3 Data Loss (major) 3 | . 2 1 Overload Shots . | . . . Overflow Damage . | . . . Projectiles . | . . . Explosions . | . . . Melee . | . . . Knockbacks 4 | . . 4 Impact . | . . . Kinetic 4 | . . 4 Secondary . | . . . Self-Inflicted Damage . | . . . Shots . | . . . Rammed 2 | 1 1 . Targets Rammed 2 | 1 1 . Kicked . | . . . Crushed . | . . . Highest Temperature 209 | 27 209 . Average Temperature 44 | 11 48 . Received Heat Transfer 285 | . 135 150 Siege Activations . | . . . Martial Activations . | . . . Shielding Activations . | . . . Robots Disrupted . | . . . Combat Hostiles . | . . . Robots Corrupted . | . . . Combat Hostiles . | . . . Parts Fried . | . . . Impact Corruptions . | . . . Robots Melted . | . . . Combat Hostiles . | . . . Parts Melted 2 | . 2 . Heat Transferred 1406 | 37 814 555 Parts Sabotaged . | . . . Parts Stolen . | . . . Parts Stripped . | . . . Power Chain Reactions . | . . . Alert | -11 -10 -10 ------- Run | Yrd Mat Sub Maximum Alert Level . | . . . Low Security (%) 100 | 100 100 . Level 1 . | . . . Level 2 . | . . . Level 3 . | . . . Level 4 . | . . . Level 5 . | . . . High Security . | . . . Max Security . | . . . Peak Influence 71 | 15 71 . Initial . | . . . Average 25 | 3 27 . Influence Increases 308 | 20 288 . Destroy 0b10 Robot/C 120 | . 120 . Destroy 0b10 Robot/NC 25 | 20 5 . Destroy Leader 32 | . 32 . Successful Hack 30 | . 30 . Select Force Hacks 60 | . 60 . Destroy Structure 11 | . 11 . Lose Combat Pursuer 30 | . 30 . Influence Decreases 308 | 20 287 1 Entered New Map 1 | . . 1 Time Decay 307 | 20 287 . Squads Dispatched 3 | . 3 . Investigation 3 | . 3 . Extermination . | . . . Reinforcement . | . . . Assault . | . . . Garrison . | . . . Intercept . | . . . Searches Triggered . | . . . Construction Impeded . | . . . Haulers Reinforced . | . . . Active Scanning Responses . | . . . Cargo Convoy Interrupts . | . . . Stealth | -11 -10 -10 --------- Run | Yrd Mat Sub Distress Signals 2 | . 2 . Communications Jammed . | . . . Distress Signals . | . . . Times Spotted 23 | . 13 10 Peak Tracking Total 5 | . 5 3 Tactical Retreats 1 | . 1 . Traps | -11 -10 -10 ------- Run | Yrd Mat Sub Traps Triggered 4 | . 4 . Indirectly . | . . . Trap Hack Attempts . | . . . Triggered . | . . . Disarmed . | . . . Reprogrammed . | . . . Reused . | . . . Traps Extracted . | . . . Installed . | . . . Triggered . | . . . Machines | -11 -10 -10 ---------- Run | Yrd Mat Sub Machines Disabled . | . . . Max in Single Turn . | . . . Machines Repaired . | . . . Machines Dismantled . | . . . Machines Sabotaged . | . . . Overloaded Fab Kills . | . . . Hacking | -11 -10 -10 --------- Run | Yrd Mat Sub Machines Accessed 9 | . 9 . Terminals 6 | . 6 . Fabricators . | . . . Repair Stations 1 | . 1 . Recycling Units 2 | . 2 . Scanalyzers . | . . . Garrison Access . | . . . Total Hacks 17 | . 17 . Successful 9 | . 9 . Failed 8 | . 8 . Catastrophic 1 | . 1 . Database Lockouts . | . . . Manual 13 | . 13 . Terminals 12 | . 12 . Fabricators . | . . . Repair Stations 3 | . 3 . Recycling Units 2 | . 2 . Scanalyzers . | . . . Garrison Access . | . . . Terminal Hacks . | . . . Fabricator Hacks . | . . . Repair Station Hacks 2 | . 2 . Scan Component 1 | . 1 . Repair 1 | . 1 . Recycling Unit Hacks . | . . . Scanalyzer . | . . . Garrison Access Hacks . | . . . Unauthorized Hacks 7 | . 7 . Terminals 5 | . 5 . Skim 5 | . 5 . Fabricators . | . . . Repair Stations . | . . . Recycling Units 2 | . 2 . Tunnel 2 | . 2 . Scanalyzers . | . . . Garrison Access . | . . . Data Cores Recovered . | . . . Used . | . . . Hacking Detections 6 | . 6 . Full Trace Events . | . . . Feedback Events . | . . . Feedback Blocked . | . . . Robot Schematics Acquired . | . . . Robots Built . | . . . Authchips . | . . . Time . | . . . Total Robot Build Rating . | . . . Part Schematics Acquired . | . . . Parts Built . | . . . Authchips . | . . . Time . | . . . Total Part Build Rating . | . . . Part Studies Acquired . | . . . Parts Repaired 1 | . 1 . Time 26 | . 26 . Parts Recycled . | . . . Recycled Matter . | . . . Retrieved Matter . | . . . Retrieved Components . | . . . Parts Scanalyzed . | . . . Part Schematics Acquired . | . . . Parts Damaged . | . . . Bothacking | -11 -10 -10 ------------ Run | Yrd Mat Sub Used RIF Installer . | . . . Robots Hacked . | . . . Non-combat . | . . . Combat . | . . . Robot Hacks Applied . | . . . Relay Couplers Released . | . . . Fabnet Peak Effective % . | . . . Robots Rewired . | . . . Allies Hacked . | . . . Hacks Repelled . | . . . Allies | -11 -10 -10 -------- Run | Yrd Mat Sub Total Allies . | . . . Largest Group . | . . . Highest-Rated Group . | . . . Highest-Rated Ally . | . . . Total Orders . | . . . Ally Attacks . | . . . Total Damage . | . . . Kills . | . . . Allies Corrupted . | . . . Allies Melted . | . . . Intel | -11 -10 -10 ------- Run | Yrd Mat Sub Active Infowar (turns) 1313 | 29 974 310 Seismic 1313 | 29 974 310 Robot Analysis Total . | . . . Derelict Logs Recovered . | . . . Drone Launches . | . . . Drone Recoveries . | . . . Exploration | -11 -10 -10 ------------- Run | Yrd Mat Sub Turns Passed 1860 | 103 974 783 Spaces Moved 875 | 47 444 384 Core 6 | 6 . . Treads 869 | 41 444 384 Legs . | . . . Wheels . | . . . Hover . | . . . Flight . | . . . Fastest Speed 50 | 50 160 160 Average Speed 159 | 145 160 160 Slowest Speed 160 | 160 160 160 Overloaded Moves . | . . . Propulsion Burnouts . | . . . Robots Hopped . | . . . Potential Cave-ins . | . . . Cave-ins Triggered . | . . . Exploration Rate (%) 37 | 4 85 23 Regions Visited 2 Branch Regions 1 Pre-discovered Areas 4 | . 3 1 Known Exits Taken 1 | . 1 . Unknown Exits Taken 1 | 1 . . Scrap Searched 2 | . . 2 Spaces Dug 7 | . 7 . Terrain Destroyed 20 | . 9 11 Melee . | . . . Projectile 12 | . 9 3 AOE 8 | . . 8 Terrain Rammed . | . . . Walls Destroyed . | . . . Machines Disabled . | . . . Actions | -11 -10 -10 --------- Run | Yrd Mat Sub Total 1179 | 66 633 480 Wait 138 | 1 121 16 Move 874 | 47 443 384 Hop . | . . . Pick Up 35 | 5 18 12 Fast Attach 9 | 5 1 3 Attach 9 | 2 1 6 Detach . | . . . Swap 21 | . 8 13 Drop 17 | . 7 10 Fire 75 | 6 33 36 Melee . | . . . Ram . | . . . Kick . | . . . Crush 1 | . 1 . Escape Stasis . | . . . Rewire . | . . . Trap . | . . . Miscellaneous . | . . . Route ------- -11/Scrapyard -10/Materials (discovered 6 exits: [*Mat x3] / *Min x2 / *Sub) -10/Subcaves History --------- Turn | Location | Event 17 | -11/Scrapyard | Discovered new exit (range 15) 104 | -11/Scrapyard | Entered Materials 312 | -10/Materials | Discovered new exit (range 3) 318 | -10/Materials | Build established: Mutant 552 | -10/Materials | Discovered new exit (range 8) 627 | -10/Materials | Discovered new exit (range 3) 843 | -10/Materials | Discovered new exit (range 10) 874 | -10/Materials | Discovered new exit (range 14) 889 | -10/Materials | Learned Storage stockpile data 927 | -10/Materials | Repaired Mining Laser 928 | -10/Materials | Learned Storage emergency access door positions 959 | -10/Materials | Identified exit to Subcaves 979 | -10/Materials | Learned Storage stockpile data 988 | -10/Materials | Learned Storage interactive machine intel 990 | -10/Materials | Learned 2 Mines zone layouts 994 | -10/Materials | Identified exit to Mines 1007 | -10/Materials | Learned location of 1 exit from Storage 1078 | -10/Materials | Entered Subcaves 1079 | -10/Subcaves | Approached by a straggling Scientist 1225 | -10/Subcaves | Ambushed by Subdweller buried in earth 1235 | -10/Subcaves | Ambushed by Subdweller buried in earth 1270 | -10/Subcaves | Lost 3 parts (1p2n) 1285 | -10/Subcaves | Core integrity fell below 50% 1443 | -10/Subcaves | Core integrity fell below 20% 1582 | -10/Subcaves | Shifting Twisted Machinery released Sub. Shrapnel Launcher 1598 | -10/Subcaves | Shifting Twisted Machinery released Scrap Shield 1835 | -10/Subcaves | Learned location of Zion (-7) 1835 | -10/Subcaves | Met a Zionite searching for "candidates" 1861 | -10/Subcaves | Destroyed by ED-A9W(R) with Subdweller Beam Cannon Last Messages --------------- 01692_ Acquired Multitool. 01694_ Dropped Beam Rifle. 01695_ Acquired Mak. Hacking Suite. 01696_ Dropped Imp. Targeting Computer. 01700_ Acquired Battle Cannon. 01702_ Subatomizers dissect the Lgt. Treads, destroying it. 01705_ Dropped Sub. Machine Gun. 01706_ Acquired Huge Storage Unit. 01753_ System corrupted: Component data lost. 01779_ System corrupted: Matter fused (-8). 01822_ XC-KQ9(z): "She is not going to be happy we haven't found any suitable candidates yet." 01835_ XC-KQ9(z): "Hey you! It's really dangerous down here, I feel that you could die at any moment. For your health and safety might I suggest a trip to Zion?" World map updated: -7/Zion. 01841_ System corrupted: Component data lost. 01845_ XC-KQ9(z) destroyed. Map ----- +----------------------------------------------------+ | ?????????????????????????????????????????????????? | | ?????????????????????????????????????????????????? | | ?????????????????????????????????????????????????? | | ?????????????????????????????????????????????????? | | ?????????????????????????????????????????????????? | | ?????????????????????????????????????????????????? | | ?????????????????????????????????????????????????? | | ?????????????????????# ??????????????????????????? | | ?????????????????????? ??????????????????????????? | | ?????????????????????#? ?????????????????????????? | | ?????????????????????? #?????####???????????????? | | ?????????????????????# #??## ##??????????????? | | ??????????????????? R# ### ???????????????? | | ??????????????????? R %! ???????????????? | | ??????????????????## ???###??????????? | | ??????????????????# ; *##?# #??????????? | | ??????????????????# ;;;; % ## #??????????? | | ???????????????????# ;;;; ## #??????????? | | ??????????????###### ## ##?????????? | | ??????????????#" #?# ##????????? | | ???????????????# #?# #????????? | | ???????????????# ##?# #?????????? | | ???????????????# #?## #??????????? | | ???????????????## ### ##?????????? | | ????????????????## ## ##????????? | | ????????????????????# @ #????????? | | ????????????????????# ## #????????? | | ????????????????????### ?## ###????????? | | ??????????????????????##???# ##?????????? | | ???????????????????????????# #?????????? | | ???????????????????????????##### #?????????? | | ???????????????????????????????## # #?????????? | | ????????????????????????????????### ##????????? | | ?????????????????????????????????## #????????? | | ?????????????????????????????????# ##????????? | | ?????????????????????????????????# #?????????? | | ?????????????????????????????????# ##?????????? | | ????????????????????????????????## #?????????? | | ????????????????????????????????# #?????????? | | ????????????????????????????????# ##????????? | | ????????????????????????????????# #????????? | | ????????????????????????????????# #????????? | | ????????????????????????????????# #????????? | | ????????????????????????????????# #????????? | | ?????????????#####?????????????## ##????????? | | ??????????####" #??###???????## ##?????????? | | ????????### " #### ##??????# #??????????? | | ????##### " ##?????#### #??????????? | | ???## "#?# " #####????# ##??????????? | | ??##" "####?#" " " #?##?# ##??????????? | +----------------------------------------------------+ Best States ------------- Heat Dissipation 25 Coolant Potential 50 Energy Generation 14 Energy Capacity 250 Matter Stores 300 Matter Capacity 300 Sight Range 16 Terrain Scan Density 10 Armor Coverage 800 Evasion (%) 40 Recoil Reduction 2 Item Schematics ----------------- None Robot Schematics ------------------ None Fabricated ------------ Nothing Repaired ---------- Mining Laser | 10% | -10/Materials Studied --------- None Alien Tech Used ----------------- None Achievements -------------- Do Not Disturb Challenges ------------ None Game ------ Seed SystemCorruptionShotgun Manual? 0 Play Time 00:17:57 Cumulative 189.1 hours Start 2025.11.09 @ 00:03:55 End 2025.11.09 @ 14:06:04 Sessions 2 Manual Loads 0 Difficulty Rogue Special Mode None Game No. 86 Rogue 81 Adventurer 5 Explorer 0 Win Type - Total 5 Types 3/0/0/1/0/0/0/0/0/1 Lore% 63 Gallery% 65 Achievement% 48 Wizard Run 0 Options --------- Layout 1 ASCII 0 Keyboard 0 Movement Numpad Keybinds 0 Fullscreen 1 Font 24/Smallcaps Map View 50x35 Zoom Use 0% Tactical HUD 1 Map Filters NONE Filters NONE Steam 1 RUN: 3e61d912-69c8-44e9-b9f6-f7d3b8c548af